fUST/lending_fUST_20250729
["ID","MTS","AMOUNT","RATE_DAILY","PERIOD"]
[375874293,1753769438640,-200.0,0.00019142,15]
[375874295,1753769438652,-536.11900982,0.00019173,2]
[375874297,1753769438663,-268.43215598,0.00019173,2]
[375874299,1753769438674,-500.0,0.00019173,2]
[375874301,1753769438685,-462.74558758,0.00019178,2]
[375874303,1753769438696,-460.0,0.00019178,2]
[375874304,1753769438706,-301.90045245,0.00019178,2]
[375874306,1753769438716,-460.0,0.00019178,2]
[375874308,1753769438727,-460.0,0.00019178,2]
[375874310,1753769438739,-460.0,0.00019178,2]
[375874312,1753769438752,-460.0,0.00019178,2]
[375874314,1753769438762,-460.0,0.00019178,2]
[375874316,1753769438773,-460.0,0.00019178,2]
[375874318,1753769438785,-460.0,0.00019178,2]
[375874320,1753769438797,-460.0,0.00019178,2]
[375874322,1753769438809,-271.75426985,0.00019178,2]
[375874324,1753769438820,-460.0,0.00019178,2]
[375874326,1753769438831,-460.0,0.00019178,2]
[375874328,1753769438844,-460.0,0.00019178,2]
[375874330,1753769438856,-460.0,0.00019178,2]
[375874332,1753769438869,-460.0,0.00019178,2]
[375874334,1753769438881,-460.0,0.00019178,2]
[375874336,1753769438893,-388.34279181,0.00019178,2]
[375874338,1753769438906,-460.0,0.00019178,2]
[375874341,1753769438919,-460.0,0.00019178,2]
[375874343,1753769438932,-460.0,0.00019178,2]
[375874344,1753769438944,-460.0,0.00019178,2]
[375874347,1753769438957,-461.67875321,0.00019178,2]
[375874349,1753769438971,-460.0,0.00019178,2]
[375874351,1753769438983,-460.0,0.00019178,2]
[375874353,1753769438996,-460.0,0.00019178,2]
[375874355,1753769439008,-460.0,0.00019178,2]
[375874357,1753769439019,-460.0,0.00019178,2]
[375874359,1753769439030,-460.0,0.00019178,2]
[375874361,1753769439041,-460.0,0.00019178,2]
[375874362,1753769439051,-460.0,0.00019178,2]
[375874364,1753769439061,-460.0,0.00019178,2]
[375874366,1753769439072,-460.0,0.00019178,2]
[375874368,1753769439082,-460.0,0.00019178,2]
[375874370,1753769439092,-467.44570869,0.00019178,2]
[375874372,1753769439103,-460.0,0.00019178,2]
[375874374,1753769439113,-460.0,0.00019178,2]
[375874376,1753769439129,-460.0,0.00019178,2]
[375874378,1753769439141,-460.0,0.00019178,2]
[375874380,1753769439154,-460.0,0.00019178,2]
[375874382,1753769439165,-460.0,0.00019178,2]
[375874384,1753769439178,-460.0,0.00019178,2]
[375874386,1753769439190,-460.0,0.00019178,2]
[375874388,1753769439202,-460.0,0.00019178,2]
[375874390,1753769439215,-151.0,0.00019178,2]
[375874392,1753769439230,-460.0,0.00019178,2]
[375874394,1753769439240,-205.30662284,0.00019178,2]
[375874396,1753769439251,-151.0,0.00019178,2]
[375874398,1753769439263,-151.0,0.00019178,2]
[375874400,1753769439274,-456.70635337,0.00019178,2]
[375874402,1753769439285,-460.0,0.00019178,2]
[375874404,1753769439297,-460.0,0.00019178,2]
[375874406,1753769439309,-151.0,0.00019178,2]
[375874408,1753769439321,-152.25472172,0.00019178,2]
[375874410,1753769439332,-198.0,0.00019178,2]
[375874412,1753769439343,-460.0,0.00019178,2]
[375874414,1753769439355,-460.0,0.00019178,2]
[375874416,1753769439365,-460.0,0.00019178,2]
[375874418,1753769439375,-500.0,0.00019178,2]
[375874419,1753769439385,-500.0,0.00019178,2]
[375874421,1753769439396,-500.0,0.00019178,2]
[375874423,1753769439406,-460.0,0.00019178,2]
[375874425,1753769439417,-500.0,0.00019178,2]
[375874427,1753769439427,-523.24,0.00019178,2]
[375874429,1753769439437,-460.0,0.00019178,2]
[375874431,1753769439447,-460.0,0.00019178,2]
[375874433,1753769439460,-460.0,0.00019178,2]
[375874435,1753769439470,-583.44,0.00019178,2]
[375874437,1753769439481,-460.0,0.00019178,2]
[375874439,1753769439492,-460.0,0.00019178,2]
[375874440,1753769439503,-238.54287625,0.00019178,2]
[375874442,1753769439514,-460.0,0.00019178,2]
[375874444,1753769439524,-460.0,0.00019178,2]
[375874446,1753769439535,-460.0,0.00019178,2]
[375874448,1753769439547,-455.0,0.00019178,2]
[375874450,1753769439563,-460.0,0.00019178,2]
[375874452,1753769439573,-410.8058977,0.00019178,2]
[375874454,1753769439585,-460.0,0.00019178,2]
[375874456,1753769439596,-569.44219641,0.00019178,2]
[375874458,1753769439607,-362.65615497,0.00019178,2]
[375874460,1753769439619,-460.0,0.00019178,2]
[375874462,1753769439630,-460.0,0.00019178,2]
[375874464,1753769439641,-460.0,0.00019178,2]
[375874466,1753769439653,-460.0,0.00019178,2]
[375874468,1753769439665,-460.0,0.00019178,2]
[375874470,1753769439676,-460.0,0.00019178,2]
[375874472,1753769439688,-483.70669506,0.00019178,2]
[375874474,1753769439699,-460.0,0.00019178,2]
[375874476,1753769439710,-460.0,0.00019178,2]
[375874478,1753769439721,-460.0,0.00019178,2]
[375874480,1753769439735,-460.0,0.00019178,2]
[375874482,1753769439747,-460.0,0.00019178,2]
[375874484,1753769439758,-460.0,0.00019178,2]
[375874486,1753769439768,-151.0,0.00019178,2]
[375874488,1753769439780,-151.0,0.00019178,2]
[375874490,1753769439792,-413.5416707,0.00019178,2]
[375874492,1753769439803,-151.69535298,0.00019178,2]
[375874494,1753769439814,-500.0,0.00019178,2]
[375874496,1753769439826,-460.0,0.00019178,2]
[375874498,1753769439837,-460.0,0.00019178,2]
[375874500,1753769439848,-460.0,0.00019178,2]
[375874502,1753769439859,-831.08,0.00019178,2]
[375874504,1753769439871,-460.0,0.00019178,2]
[375874506,1753769439882,-460.0,0.00019178,2]
[375874508,1753769439893,-460.0,0.00019178,2]
[375874510,1753769439904,-460.0,0.00019178,2]
[375874511,1753769439915,-482.01170074,0.00019178,2]
[375874513,1753769439925,-500.0,0.00019178,2]
[375874515,1753769439936,-460.0,0.00019178,2]
[375874517,1753769439947,-460.0,0.00019178,2]
[375874519,1753769439958,-460.0,0.00019178,2]
[375874521,1753769439970,-500.0,0.00019178,2]
[375874523,1753769439980,-151.0,0.00019178,2]
[375874525,1753769439992,-151.0,0.00019178,2]
[375874527,1753769440003,-460.0,0.00019178,2]
[375874548,1753769440220,-460.0,0.00019178,2]
[375874550,1753769440231,-460.0,0.00019178,2]
[375874551,1753769440240,-468.25,0.00019178,2]
[375874553,1753769440250,-460.0,0.00019178,2]
[375874555,1753769440259,-408.48623338,0.00019178,2]
[375874557,1753769440271,-460.0,0.00019178,2]
[375874559,1753769440281,-460.0,0.00019178,2]
[375874561,1753769440293,-460.0,0.00019178,2]
[375874563,1753769440304,-460.0,0.00019178,2]
[375874565,1753769440314,-460.0,0.00019178,2]
[375874567,1753769440323,-460.0,0.00019178,2]
[375874568,1753769440333,-460.0,0.00019178,2]
[375874570,1753769440342,-460.0,0.00019178,2]
[375874572,1753769440352,-463.06415516,0.00019178,2]
[375874574,1753769440361,-460.0,0.00019178,2]
[375874576,1753769440370,-460.0,0.00019178,2]
[375874578,1753769440380,-530.43,0.00019178,2]
[375874580,1753769440390,-460.0,0.00019178,2]
[375874582,1753769440400,-460.0,0.00019178,2]
[375874584,1753769440410,-460.0,0.00019178,2]
[375874588,1753769440419,-460.0,0.00019178,2]
[375874591,1753769440429,-472.896692,0.00019178,2]
[375874594,1753769440438,-414.13773562,0.00019178,2]
[375874597,1753769440447,-460.0,0.00019178,2]
[375874599,1753769440457,-460.0,0.00019178,2]
[375874601,1753769440468,-1000.0,0.00019321,2]
[375874603,1753769440477,-1532.9381443,0.00019361,2]
[375874605,1753769440487,-151.0,0.00019452,2]
[375874607,1753769440497,-201.23466583,0.00019452,2]
[375874608,1753769440507,-151.0,0.00019452,2]
[375874610,1753769440520,-151.0,0.00019452,2]
[375874612,1753769440529,-500.0,0.00019452,2]
[375874613,1753769440541,-500.0,0.00019452,2]
[375874615,1753769440550,-500.0,0.00019452,2]
[375874618,1753769440572,-271.76297711,0.00019452,2]
[375874619,1753769440583,-151.0,0.00019452,2]
[375874621,1753769440594,-460.0,0.00019452,2]
[375874622,1753769440604,-234.04,0.00019452,2]
[375874623,1753769440615,-460.0,0.00019452,2]
[375874624,1753769440625,-460.0,0.00019452,2]
[375874625,1753769440635,-157.69582277,0.00019452,2]
[375874626,1753769440645,-460.0,0.00019452,2]
[375874627,1753769440655,-460.0,0.00019452,2]
[375874628,1753769440665,-460.0,0.00019452,2]
[375874629,1753769440675,-460.0,0.00019452,2]
[375874630,1753769440685,-460.0,0.00019452,2]
[375874631,1753769440695,-460.0,0.00019452,2]
[375874632,1753769440705,-460.0,0.00019452,2]
[375874633,1753769440714,-213.38,0.00019452,2]
[375874634,1753769440723,-460.0,0.00019452,2]
[375874635,1753769440733,-460.0,0.00019452,2]
[375874636,1753769440743,-460.0,0.00019452,2]
[375874637,1753769440752,-831.08,0.00019452,2]
[375874638,1753769440762,-460.0,0.00019452,2]
[375874639,1753769440772,-460.0,0.00019452,2]
[375874640,1753769440782,-460.0,0.00019452,2]
[375874641,1753769440792,-460.0,0.00019452,2]
[375874642,1753769440802,-460.0,0.00019452,2]
[375874643,1753769440812,-514.22,0.00019452,2]
[375874644,1753769440822,-460.0,0.00019452,2]
[375874645,1753769440832,-530.43,0.00019452,2]
[375874646,1753769440842,-460.0,0.00019452,2]
[375874647,1753769440852,-460.0,0.00019452,2]
[375874648,1753769440862,-460.0,0.00019452,2]
[375874649,1753769440872,-151.0,0.00019726,2]
[375874650,1753769440881,-151.0,0.00019726,2]
[375874651,1753769440891,-300.77019351,0.00019726,2]
[375874652,1753769440901,-500.0,0.00019726,2]
[375874653,1753769440911,-500.0,0.00019726,2]
[375874654,1753769440921,-530.43529069,0.00019726,2]
[375874655,1753769440930,-198.0,0.00019726,2]
[375874656,1753769440940,-224.13439334,0.00019726,2]
[375874657,1753769440951,-460.0,0.00019726,2]
[375874659,1753769440960,-460.0,0.00019726,2]
[375874660,1753769440970,-460.0,0.00019726,2]
[375874661,1753769440980,-460.0,0.00019726,2]
[375874662,1753769440990,-460.0,0.00019726,2]
[375874663,1753769441000,-460.0,0.00019726,2]
[375874664,1753769441011,-460.0,0.00019726,2]
[375874665,1753769441021,-460.0,0.00019726,2]
[375874666,1753769441031,-460.0,0.00019726,2]
[375874667,1753769441042,-831.08,0.00019726,2]
[375874668,1753769441052,-460.0,0.00019726,2]
[375874669,1753769441061,-460.0,0.00019726,2]
[375874670,1753769441072,-460.0,0.00019726,2]
[375874671,1753769441083,-460.0,0.00019726,2]
[375874672,1753769441095,-460.0,0.00019726,2]
[375874673,1753769441105,-460.0,0.00019726,2]
[375874674,1753769441115,-530.43,0.00019726,2]
[375874675,1753769441127,-460.0,0.00019726,2]
[375874676,1753769441138,-460.0,0.00019726,2]
[375874677,1753769441149,-460.0,0.00019726,2]
[375874678,1753769441160,-283.11186941,0.00019759,2]
[375874679,1753769441175,-2695.62462381,0.00019795,2]
[375874680,1753769441186,-1000.0,0.00019868,2]
[375874681,1753769441196,-500.0,0.00019997,2]
[375874682,1753769441206,-1253.77247123,0.00019997,2]
[375874683,1753769441216,-541.16795575,0.00019997,2]
[375874684,1753769441230,-1253.77247123,0.00019997,2]
[375874685,1753769441239,-1253.77247123,0.00019997,2]
[375874686,1753769441253,-1253.77247123,0.00019997,2]
[375874687,1753769441263,-1253.77247123,0.00019997,2]
[375874688,1753769441274,-1253.77247123,0.00019997,2]
[375874689,1753769441285,-1253.77247123,0.00019997,2]
[375874690,1753769441303,-1253.77247123,0.00019997,2]
[375874691,1753769441313,-1253.77247123,0.00019997,2]
[375874692,1753769441327,-1253.77247123,0.00019997,2]
[375874693,1753769441337,-1253.77247123,0.00019997,2]
[375874694,1753769441347,-1253.77247123,0.00019997,2]
[375874695,1753769441357,-1253.77247123,0.00019997,2]
[375874696,1753769441366,-1253.77247123,0.00019997,2]
[375874697,1753769441376,-1253.77247123,0.00019997,2]
[375874698,1753769441386,-1253.77247123,0.00019997,2]
[375874699,1753769441396,-151.0,0.0002,2]
[375874700,1753769441406,-245.0,0.0002,2]
[375874701,1753769441416,-156.63877464,0.0002,2]
[375874702,1753769441426,-500.0,0.0002,2]
[375874703,1753769441435,-460.0,0.0002,2]
[375874704,1753769441445,-460.0,0.0002,2]
[375874705,1753769441455,-460.0,0.0002,2]
[375874706,1753769441464,-460.0,0.0002,2]
[375874707,1753769441474,-460.0,0.0002,2]
[375874708,1753769441484,-460.0,0.0002,2]
[375874709,1753769441494,-460.0,0.0002,2]
[375874710,1753769441504,-460.0,0.0002,2]
[375874711,1753769441513,-519.81,0.0002,2]
[375874712,1753769441523,-831.08,0.0002,2]
[375874713,1753769441532,-460.0,0.0002,2]
[375874714,1753769441542,-460.0,0.0002,2]
[375874715,1753769441553,-460.0,0.0002,2]
[375874716,1753769441562,-460.0,0.0002,2]
[375874717,1753769441572,-460.0,0.0002,2]
[375874718,1753769441581,-225.7,0.0002,2]
[375874719,1753769441591,-530.43,0.0002,2]
[375874720,1753769441600,-460.0,0.0002,2]
[375874721,1753769441610,-460.0,0.0002,2]
[375874722,1753769441620,-460.0,0.0002,2]
[375874723,1753769441629,-327.96,0.00020128,3]
[375874724,1753769441639,-460.0,0.00020273,2]
[375874725,1753769441649,-460.0,0.00020273,2]
[375874726,1753769441658,-460.0,0.00020273,2]
[375874727,1753769441668,-460.0,0.00020273,2]
[375874728,1753769441678,-460.0,0.00020273,2]
[375874729,1753769441687,-460.0,0.00020273,2]
[375874730,1753769441697,-460.0,0.00020273,2]
[375874731,1753769441707,-831.08,0.00020273,2]
[375874732,1753769441717,-460.0,0.00020273,2]
[375874733,1753769441727,-460.0,0.00020273,2]
[375874734,1753769441737,-460.0,0.00020273,2]
[375874735,1753769441747,-460.0,0.00020273,2]
[375874736,1753769441757,-460.0,0.00020273,2]
[375874737,1753769441768,-530.43,0.00020273,2]
[375874738,1753769441778,-460.0,0.00020273,2]
[375874739,1753769441789,-460.0,0.00020273,2]
[375874740,1753769441800,-460.0,0.00020273,2]
[375874741,1753769441812,-210.41785761,0.00020274,2]
[375874742,1753769441824,-500.0,0.00020274,2]
[375874743,1753769441834,-1443.0,0.00020458,2]
[375874744,1753769441845,-180.0,0.0002046,2]
[375874745,1753769441855,-460.0,0.00020547,2]
[375874746,1753769441865,-460.0,0.00020547,2]
[375874747,1753769441875,-460.0,0.00020547,2]
[375874748,1753769441886,-460.0,0.00020547,2]
[375874749,1753769441896,-460.0,0.00020547,2]
[375874750,1753769441906,-460.0,0.00020547,2]
[375874751,1753769441915,-831.08,0.00020547,2]
[375874752,1753769441925,-460.0,0.00020547,2]
[375874753,1753769441935,-541.59211864,0.00020547,2]
[375874754,1753769441946,-460.0,0.00020547,2]
[375874755,1753769441955,-460.0,0.00020547,2]
[375874756,1753769441966,-460.0,0.00020547,2]
[375874757,1753769441976,-460.0,0.00020547,2]
[375874758,1753769441986,-530.43,0.00020547,2]
[375874759,1753769441995,-460.0,0.00020547,2]
[375874760,1753769442006,-460.0,0.00020547,2]
[375874761,1753769442015,-500.0,0.00020548,2]
[375874762,1753769442025,-160.0,0.0002055,2]
[375874763,1753769442035,-454.69923987,0.00020558,2]
[375874764,1753769442048,-214.91980558,0.00020558,2]
[375874765,1753769442061,-12637.12721421,0.00020558,2]
[375874766,1753769442071,-1554.0,0.0002056,2]
[375874767,1753769442082,-362.16520873,0.00020583,2]
[375874768,1753769442091,-460.0,0.00020821,2]
[375874769,1753769442101,-358.2763748,0.00020821,2]
[375874770,1753769442110,-460.0,0.00020821,2]
[375874771,1753769442120,-460.0,0.00020821,2]
[375874772,1753769442130,-460.0,0.00020821,2]
[375874773,1753769442139,-460.0,0.00020821,2]
[375874774,1753769442149,-831.08,0.00020821,2]
[375874775,1753769442159,-460.0,0.00020821,2]
[375874776,1753769442168,-198.24,0.00020821,2]
[375874777,1753769442177,-460.0,0.00020821,2]
[375874778,1753769442187,-460.0,0.00020821,2]
[375874779,1753769442197,-460.0,0.00020821,2]
[375874780,1753769442207,-530.43,0.00020821,2]
[375874781,1753769442217,-426.65,0.00020821,2]
[375874782,1753769442230,-500.0,0.00020822,2]
[375874783,1753769442240,-283.11186941,0.00020852,2]
[375874784,1753769442249,-200.0,0.0002102,15]
[375874785,1753769442259,-200.0,0.0002102,15]
[375874786,1753769442270,-200.0,0.0002102,15]
[375874787,1753769442280,-200.0,0.0002102,15]
[375874788,1753769442290,-320.0,0.0002102,15]
[375874789,1753769442301,-3000.0,0.00021042,2]
[375874790,1753769442311,-460.0,0.00021095,2]
[375874791,1753769442320,-460.0,0.00021095,2]
[375874792,1753769442330,-460.0,0.00021095,2]
[375874793,1753769442339,-460.0,0.00021095,2]
[375874794,1753769442349,-831.08,0.00021095,2]
[375874795,1753769442359,-460.0,0.00021095,2]
[375874796,1753769442368,-460.0,0.00021095,2]
[375874797,1753769442377,-438.96,0.00021095,2]
[375874798,1753769442387,-460.0,0.00021095,2]
[375874799,1753769442397,-530.43,0.00021095,2]
[375874800,1753769442407,-500.0,0.00021096,2]
[375874801,1753769442420,-4000.0,0.00021126,3]
[375874802,1753769442430,-6000.0,0.00021212,3]
[375874803,1753769442440,-12637.12721421,0.00021212,3]
[375874804,1753769442450,-160.0,0.00021212,3]
[375874805,1753769442460,-214.91980558,0.00021212,3]
[375874806,1753769442470,-151.0,0.00021369,2]
[375874807,1753769442480,-460.0,0.00021369,2]
[375874808,1753769442490,-460.0,0.00021369,2]
[375874809,1753769442499,-460.0,0.00021369,2]
[375874810,1753769442509,-460.0,0.00021369,2]
[375874811,1753769442518,-831.08,0.00021369,2]
[375874812,1753769442528,-460.0,0.00021369,2]
[375874813,1753769442539,-460.0,0.00021369,2]
[375874814,1753769442550,-460.0,0.00021369,2]
[375874815,1753769442559,-530.43,0.00021369,2]
[375874816,1753769442569,-500.0,0.0002137,2]
[375874817,1753769442580,-152.9570777,0.00021643,2]
[375874818,1753769442590,-460.0,0.00021643,2]
[375874819,1753769442599,-460.0,0.00021643,2]
[375874820,1753769442611,-460.0,0.00021643,2]
[375874821,1753769442628,-287.20059537,0.00021643,2]
[375874823,1753769442638,-831.08,0.00021643,2]
[375874824,1753769442648,-460.0,0.00021643,2]
[375874826,1753769442658,-460.0,0.00021643,2]
[375874827,1753769442669,-460.0,0.00021643,2]
[375874830,1753769442679,-530.43,0.00021643,2]
[375874831,1753769442689,-500.0,0.00021644,2]
[375874833,1753769442699,-618.2,0.00021647,4]
[375874835,1753769442709,-372.122,0.00021656,2]
[375874836,1753769442719,-150.0,0.000219,2]
[375874837,1753769442729,-476.39,0.00021917,2]
[375874838,1753769442747,-460.0,0.00021917,2]
[375874839,1753769442762,-460.0,0.00021917,2]
[375874840,1753769442773,-831.08,0.00021917,2]
[375874841,1753769442783,-460.0,0.00021917,2]
[375874842,1753769442796,-460.0,0.00021917,2]
[375874843,1753769442806,-460.0,0.00021917,2]
[375874844,1753769442816,-530.43,0.00021917,2]
[375874845,1753769442826,-500.0,0.00021918,2]
[375874846,1753769442837,-283.11186941,0.00021944,2]
[375874847,1753769442847,-2688.5,0.00022,7]
[375874848,1753769442858,-460.97,0.00022,7]
[375874849,1753769442868,-1224.61,0.00022,7]
[375874850,1753769442878,-9368.91,0.00022,2]
[375874851,1753769442888,-618.2,0.00022078,4]
[375874852,1753769442898,-2159.0,0.00022175,2]
[375874853,1753769442908,-969.0,0.00022185,2]
[375874854,1753769442918,-407.0,0.00022185,2]
[375874855,1753769442928,-425.682,0.00022185,2]
[375874856,1753769442939,-460.0,0.00022191,2]
[375874857,1753769442948,-460.0,0.00022191,2]
[375874859,1753769442958,-831.08,0.00022191,2]
[375874861,1753769442968,-460.0,0.00022191,2]
[375874862,1753769442978,-460.0,0.00022191,2]
[375874863,1753769442988,-460.0,0.00022191,2]
[375874864,1753769442998,-530.43,0.00022191,2]
[375874865,1753769443008,-500.0,0.00022192,2]
[375874866,1753769443018,-154.311643,0.0002235,3]
[375874867,1753769443027,-150.0,0.00022398,2]
[375874868,1753769443039,-150.0,0.00022398,2]
[375874869,1753769443050,-150.17,0.00022398,2]
[375874870,1753769443059,-150.314,0.00022398,2]
[375874871,1753769443070,-179.979,0.00022398,2]
[375874872,1753769443080,-460.0,0.00022465,2]
[375874873,1753769443090,-460.0,0.00022465,2]
[375874874,1753769443099,-831.08,0.00022465,2]
[375874875,1753769443109,-460.0,0.00022465,2]
[375874876,1753769443119,-460.0,0.00022465,2]
[375874877,1753769443129,-460.0,0.00022465,2]
[375874878,1753769443139,-530.43,0.00022465,2]
[375874879,1753769443149,-500.0,0.00022466,2]
[375874880,1753769443159,-1728.70191568,0.00022492,2]
[375874881,1753769443169,-362.16520873,0.00022494,2]
[375874882,1753769443179,-618.2,0.00022509,5]
[375874883,1753769443188,-500.0,0.00022594,2]
[375874884,1753769443198,-154.311643,0.000227,3]
[375874885,1753769443208,-156.566386,0.000227,3]
[375874886,1753769443218,-158.24,0.00022739,2]
[375874887,1753769443232,-460.0,0.00022739,2]
[375874888,1753769443242,-831.08,0.00022739,2]
[375874889,1753769443251,-573.55672229,0.00022739,2]
[375874890,1753769443262,-269.89,0.00022739,2]
[375874891,1753769443273,-460.0,0.00022739,2]
[375874892,1753769443286,-530.43,0.00022739,2]
[375874893,1753769443298,-500.0,0.0002274,2]
[375874894,1753769443310,-618.2,0.0002294,5]
[375874895,1753769443323,-1127.79,0.00023,2]
[375874897,1753769443334,-786.38686985,0.00023,3]
[375874898,1753769443344,-460.0,0.00023013,2]
[375874899,1753769443354,-831.08,0.00023013,2]
[375874900,1753769443364,-460.0,0.00023013,2]
[375874901,1753769443374,-530.43,0.00023013,2]
[375874902,1753769443388,-500.0,0.00023014,2]
[375874903,1753769443398,-283.11186941,0.00023037,2]
[375874904,1753769443408,-200.0,0.00023083,15]
[375874905,1753769443418,-200.0,0.00023083,15]
[375874906,1753769443428,-200.0,0.00023083,15]
[375874909,1753769443438,-200.0,0.00023083,15]
[375874910,1753769443448,-200.0,0.00023083,15]
[375874912,1753769443458,-200.0,0.00023083,15]
[375874914,1753769443468,-366.0,0.00023083,15]
[375874915,1753769443478,-224.51,0.0002314,2]
[375874917,1753769443488,-460.0,0.00023287,2]
[375874919,1753769443498,-831.08,0.00023287,2]
[375874921,1753769443508,-460.0,0.00023287,2]
[375874922,1753769443518,-530.43,0.00023287,2]
[375874923,1753769443691,-500.0,0.00023288,2]
[375874924,1753769443703,-618.2,0.0002337,5]
[375874925,1753769443714,-460.0,0.00023561,2]
[375874926,1753769443724,-831.08,0.00023561,2]
[375874927,1753769443733,-460.0,0.00023561,2]
[375874928,1753769443743,-530.43,0.00023561,2]
[375874929,1753769443753,-500.0,0.00023562,2]
[375874930,1753769443763,-508.64,0.00023658,2]
[375874931,1753769443773,-508.64,0.0002367,4]
[375874932,1753769443783,-500.0,0.0002369,2]
[375874933,1753769443793,-508.64,0.00023758,4]
[375874934,1753769443804,-508.64,0.0002377,7]
[375874935,1753769443813,-618.2,0.00023801,6]
[375874936,1753769443823,-460.0,0.00023835,2]
[375874937,1753769443832,-831.08,0.00023835,2]
[375874938,1753769443845,-530.43,0.00023835,2]
[375874939,1753769443855,-316.16,0.00023835,2]
[375874940,1753769443865,-344.286637,0.00023836,2]
[375874941,1753769443874,-508.66537039,0.00023858,4]
[375874942,1753769443884,-508.64,0.0002387,4]
[375874943,1753769443893,-1918.27545479,0.000239,2]
[375874944,1753769443903,-160.0,0.00023958,3]
[375874945,1753769443913,-508.64,0.0002397,7]
[375874946,1753769443922,-1000.0,0.00024,30]
[375874947,1753769443932,-508.64,0.0002407,6]
[375874948,1753769443941,-460.0,0.00024109,2]
[375874949,1753769443950,-831.08,0.00024109,2]
[375874950,1753769443962,-530.43,0.00024109,2]
[375874951,1753769443972,-283.11186941,0.00024129,2]
[375874952,1753769443981,-9368.91,0.000242,2]
[375874953,1753769443991,-618.2,0.00024232,6]
[375874954,1753769444000,-151.0,0.000243,7]
[375874955,1753769444010,-568.57619371,0.00024383,2]
[375874956,1753769444019,-831.08,0.00024383,2]
[375874957,1753769444029,-530.43,0.00024383,2]
[375874958,1753769444040,-362.16520873,0.00024404,2]
[375874959,1753769444050,-831.08,0.00024657,2]
[375874960,1753769444060,-530.43,0.00024657,2]
[375874961,1753769444069,-185.78895639,0.00024658,2]
[375874962,1753769444079,-500.0,0.00024658,2]
[375874963,1753769444088,-618.2,0.00024663,6]
[375874964,1753769444098,-460.97,0.000248,7]
[375874965,1753769444107,-1224.61,0.000248,7]
[375874966,1753769444118,-151.0,0.000249,7]
[375874967,1753769444128,-724601.4594155,0.000249,2]
[375874968,1753769444204,-26882.5009015,0.000249,2]
[375874969,1753769444214,-831.08,0.00024931,2]
[375874970,1753769444226,-530.43,0.00024931,2]
[375874971,1753769444236,-500.0,0.00024932,2]
[375874972,1753769444246,-150.0,0.00024952,2]
[375874973,1753769444256,-618.2,0.00025094,7]
[375874974,1753769444266,-170.45776717,0.00025123,2]
[375874975,1753769444275,-2159.0,0.00025175,2]
[375874976,1753769444285,-969.0,0.00025185,2]
[375874977,1753769444296,-407.0,0.00025185,2]
[375874978,1753769444307,-407.0,0.00025185,2]
[375874979,1753769444317,-831.08,0.00025205,2]
[375874980,1753769444326,-530.43,0.00025205,2]
[375874981,1753769444336,-500.0,0.00025206,2]